bitfinex-derivatives/quotes_SOLF0:USTF0_20250903
["timestamp","ask_amount","ask_price","bid_price","bid_amount"]
[1756941668974,1.56421484,210.33,210.29,12.09]
[1756941669173,1.56421484,210.33,210.3,7.51]
[1756941670074,319.66,210.37,210.3,7.51]
[1756941670265,1.56421484,210.33,210.29,12.12635966]
[1756941670670,1.56421484,210.33,210.3,7.51]
[1756941670876,1.56421484,210.33,210.31,7.51]
[1756941671275,1.56421484,210.33,210.29,12.12635966]
[1756941671476,1.56421484,210.33,210.3,7.51]
[1756941671677,1.56421484,210.33,210.29,12.12635966]
[1756941672078,1.56421484,210.33,210.3,7.72]
[1756941672480,319.66,210.37,210.3,7.72]
[1756941672481,1.56421484,210.37,210.3,7.72]
[1756941674672,1.56421484,210.35,210.3,7.72]
[1756941674874,9.13421484,210.35,210.3,7.72]
[1756941675075,1.56421484,210.33,210.31,7.72]
[1756941676880,7.57,210.32,210.3,0.03577877]
[1756941677083,1.56421484,210.31,210.3,0.03577877]
[1756941677480,1.56421484,210.31,210.3,7.75577877]
[1756941677881,1.56421484,210.34,210.3,7.75577877]
[1756941678082,1.56421484,210.36,210.3,7.75577877]
[1756941679786,1.56421484,210.34,210.31,7.72]
[1756941680084,9.13421484,210.34,210.31,22.04]
[1756941680284,1.56421484,210.32,210.31,22.04]
[1756941681283,1.56421484,210.33,210.32,7.72]
[1756941682379,1.56421484,210.33,210.31,14.32]
[1756941682886,7.57,210.31,210.29,12.09]
[1756941683182,9.13421484,210.3,210.29,12.09]
[1756941683375,5.3297525,210.35,210.25,7.72]
[1756941683577,1.56421484,210.26,210.25,7.72]
[1756941687387,12.8997525,210.35,210.25,7.72]
[1756941687683,1.56421484,210.3,210.25,7.72]
[1756941687875,1.56421484,210.3,210.24,7.72]
[1756941688381,1.56421484,210.28,210.23,17.72]
[1756941688582,7.57,210.32,210.24,7.72]
[1756941688885,7.57,210.32,210.23,17.72]
[1756941688886,1.56421484,210.27,210.23,17.72]
[1756941689086,1.56421484,210.27,210.24,7.72]
[1756941689381,1.56421484,210.27,210.23,17.72]
[1756941689986,1.56421484,210.27,210.24,7.72]
[1756941690184,1.56421484,210.31,210.24,7.72]
[1756941690384,1.56421484,210.35,210.27,1.56421484]
[1756941690582,1.56421484,210.35,210.28,7.72]
[1756941696188,1.56421484,210.33,210.28,7.72]
[1756941696387,1.56421484,210.29,210.28,7.72]
[1756941696587,1.56421484,210.29,210.23,17.72]
[1756941696788,1.56421484,210.27,210.24,7.72]
[1756941696988,1.56421484,210.27,210.23,17.72]
[1756941697193,1.56421484,210.27,210.24,7.72]
[1756941697493,1.56421484,210.27,210.22,11.85]
[1756941697996,9.13421484,210.27,210.22,11.85]
[1756941698196,124.17462875,210.39,210.24,7.72]
[1756941698197,1.56421484,210.25,210.24,7.72]
[1756941698592,7.57,210.3,210.24,7.72]
[1756941698796,1.56421484,210.27,210.24,7.72]
[1756941699095,1.56421484,210.27,210.22,11.85]
[1756941699291,1.56421484,210.27,210.23,7.72]
[1756941699692,1.56421484,210.27,210.22,11.85]
[1756941700089,1.56421484,210.27,210.23,7.72]
[1756941700294,1.56421484,210.27,210.22,11.85]
[1756941700499,1.56421484,210.27,210.23,7.72]
[1756941700694,1.56421484,210.27,210.22,11.85]
[1756941700900,1.56421484,210.27,210.25,7.72]
[1756941701696,1.56421484,210.27,210.24,16.19]
[1756941702000,1.56421484,210.27,210.26,7.29]
[1756941705000,1.56421484,210.27,210.25,7.29]
[1756941705899,1.56421484,210.27,210.24,16.19]
[1756941706101,1.56421484,210.27,210.26,7.29]
[1756941706300,1.56421484,210.27,210.25,7.29]
[1756941706707,7.58,210.26,210.24,16.19]
[1756941706901,1.56421484,210.25,210.24,16.19]
[1756941708208,7.58,210.26,210.24,16.19]
[1756941708508,1.56421484,210.25,210.24,23.48]
[1756941709208,9.14421484,210.25,210.24,16.19]
[1756941710514,1.56421484,210.25,210.24,16.19]
[1756941711412,2.4439117,210.27,210.24,16.19]
[1756941711611,7.58,210.26,210.24,16.19]
[1756941717215,7.58,210.29,210.25,7.29]
[1756941717416,2.4439117,210.27,210.25,7.29]
[1756941717616,10.0239117,210.27,210.25,7.29]
[1756941717812,10.0239117,210.27,210.24,23.48]
[1756941720215,2.4439117,210.27,210.24,16.19]
[1756941720615,7.58,210.26,210.24,16.19]
[1756941724214,2.4439117,210.27,210.24,16.19]
[1756941724722,7.58,210.26,210.23,10.42]
[1756941726225,7.58,210.26,210.24,7.29]
[1756941726723,2.4439117,210.27,210.23,10.42]
[1756941727320,7.58,210.26,210.23,10.42]
[1756941727515,2.4439117,210.27,210.23,10.42]
[1756941727719,2.4439117,210.24,210.23,10.42]
[1756941727924,2.4439117,210.24,210.12,3.9473001]
[1756941727925,2.4439117,210.24,210.13,7.29]
[1756941728229,2.4439117,210.2,210.15,7.29]
[1756941728722,2.4439117,210.2,210.14,13.69]
[1756941729318,2.4439117,210.2,210.15,7.29]
[1756941729520,2.4439117,210.2,210.14,13.69]
[1756941729717,2.4439117,210.2,210.15,7.29]
[1756941730024,2.4439117,210.2,210.14,13.69]
[1756941730224,2.4439117,210.2,210.15,7.29]
[1756941730524,10.0239117,210.2,210.16,7.29]
[1756941730716,10.0239117,210.2,210.14,13.69]
[1756941731623,10.0239117,210.2,210.16,7.29]
[1756941732126,10.0239117,210.2,210.15,10.12]
[1756941732127,10.0239117,210.2,210.17,7.99]
[1756941733224,2.4439117,210.27,210.16,7.99]
[1756941733422,89.82025239,210.28,210.16,10.4339117]
[1756941733623,89.82025239,210.28,210.17,7.99]
[1756941739925,7.86,210.27,210.17,7.99]
[1756941746730,89.82025239,210.28,210.18,18.21]
[1756941746937,7.86,210.25,210.18,18.21]
[1756941747337,7.86,210.25,210.19,7.99]
[1756941749437,118.6039117,210.27,210.18,18.21]
[1756941749638,2.4439117,210.21,210.18,18.21]
[1756941749941,118.6039117,210.21,210.18,18.21]
[1756941750142,7.86,210.2,210.18,18.21]
[1756941750335,7.86,210.19,210.18,18.21]
[1756941754839,2.4439117,210.21,210.18,18.21]
[1756941755041,2.4439117,210.24,210.19,7.99]
[1756941755843,2.4439117,210.24,210.18,18.21]
[1756941756046,2.4439117,210.24,210.19,7.99]
[1756941756240,2.4439117,210.24,210.18,18.21]
[1756941756647,2.4439117,210.24,210.19,7.99]
[1756941756850,2.4439117,210.24,210.18,18.21]
[1756941757038,2.4439117,210.24,210.19,7.99]
[1756941757243,10.3039117,210.27,210.21,7.99]
[1756941757444,116.18,210.25,210.2,7.99]
[1756941757645,116.18,210.25,210.19,18.33]
[1756941758043,124.04,210.25,210.21,7.99]
[1756941758644,124.04,210.25,210.19,18.33]
[1756941758846,124.04,210.25,210.2,7.99]
[1756941759049,124.04,210.25,210.21,7.99]
[1756941759344,7.86,210.25,210.22,7.99]
[1756941759551,116.18,210.25,210.2,7.99]
[1756941759748,116.18,210.25,210.19,18.33]
[1756941759947,116.18,210.25,210.2,7.99]
[1756941760848,116.18,210.25,210.19,18.33]
[1756941761253,124.04,210.25,210.19,18.33]
[1756941761754,116.18,210.24,210.19,18.33]
[1756941762053,123.89,210.24,210.19,18.33]
[1756941762255,123.89,210.24,210.2,7.53]
[1756941762947,123.89,210.24,210.21,7.53]
[1756941763453,7.71,210.23,210.2,7.53]
[1756941764550,106.16,210.24,210.21,7.53]
[1756941764753,116.16,210.26,210.2,7.53]
[1756941764958,116.16,210.26,210.22,15.79]
[1756941764959,123.87,210.26,210.22,15.79]
[1756941765157,123.87,210.26,210.23,7.53]
[1756941765360,7.71,210.32,210.22,15.79]
[1756941765559,10.1539117,210.3,210.23,7.53]
[1756941765959,37.34,210.29,210.23,7.53]
[1756941768960,7.71,210.28,210.23,7.53]
[1756941769165,45.05,210.29,210.23,7.53]
[1756941771159,45.05,210.29,210.22,15.79]
[1756941771363,7.71,210.28,210.22,15.79]
[1756941771663,2.4439117,210.27,210.22,15.79]
[1756941771858,7.71,210.26,210.22,15.79]
[1756941772061,2.4439117,210.27,210.22,15.79]
[1756941772462,7.71,210.26,210.22,15.79]
[1756941772662,2.4439117,210.27,210.22,15.79]
[1756941772863,7.71,210.26,210.22,15.79]
[1756941773063,2.4439117,210.27,210.22,15.79]
[1756941773264,7.71,210.26,210.22,23.32]
[1756941773461,9.27374608,210.26,210.23,7.53]
[1756941773661,9.27374608,210.28,210.24,7.53]
[1756941778270,1.56374608,210.28,210.24,7.53]
[1756941778471,7.71,210.27,210.24,7.53]
[1756941780171,1.56374608,210.28,210.21,7.53]
[1756941781571,1.56374608,210.28,210.22,12.3]
[1756941782671,9.27374608,210.28,210.24,7.53]
[1756941783771,9.27374608,210.28,210.23,7.53]
[1756941784271,9.27374608,210.28,210.22,12.3]
[1756941784767,9.27374608,210.28,210.23,7.53]
[1756941785072,9.27374608,210.28,210.24,7.53]
[1756941785269,9.27374608,210.28,210.23,7.53]
[1756941785674,7.71,210.27,210.24,7.53]
[1756941786267,9.27374608,210.27,210.24,7.53]
[1756941789376,9.27374608,210.27,210.23,7.53]
[1756941789677,7.71,210.27,210.24,7.53]
[1756941789878,1.56374608,210.28,210.23,7.53]
[1756941790078,7.71,210.27,210.24,7.53]
[1756941790475,7.71,210.25,210.22,19.83]
[1756941790776,7.71,210.25,210.22,12.3]
[1756941790972,7.71,210.25,210.23,7.53]
[1756941791978,1.56374608,210.24,210.22,12.3]
[1756941792678,7.72,210.23,210.22,12.3]
[1756941793073,7.72,210.29,210.22,12.3]
[1756941793270,1.56374608,210.26,210.23,7.42]
[1756941793475,9.28374608,210.26,210.23,7.42]
[1756941793873,1.56374608,210.26,210.22,12.3]
[1756941794075,1.56374608,210.26,210.23,7.42]
[1756941794275,1.56374608,210.26,210.24,7.42]
[1756941797986,1.56374608,210.26,210.22,12.3]
[1756941797987,9.28374608,210.26,210.23,7.42]
[1756941798281,9.28374608,210.26,210.24,7.42]
[1756941800082,1.56374608,210.27,210.22,12.3]
[1756941800278,1.56374608,210.28,210.22,12.3]
[1756941800477,1.56374608,210.28,210.22,7.42]
[1756941801578,1.56374608,210.26,210.22,7.42]
[1756941801785,1.56374608,210.26,210.2,7.42]
[1756941802079,9.28374608,210.22,210.19,18.33]
[1756941802474,9.28374608,210.22,210.19,25.75]
[1756941802676,5.3297525,210.28,210.19,18.33]
[1756941802882,1.56374608,210.2,210.19,18.33]
[1756941804290,1.56374608,210.2,210.19,30.82]
[1756941804483,1.56374608,210.2,210.19,38.24]
[1756941804883,1.56374608,210.22,210.19,30.82]
[1756941805181,1.56374608,210.23,210.19,30.82]
[1756941805585,1.56374608,210.23,210.2,7.42]
[1756941805884,1.56374608,210.23,210.19,30.82]
[1756941806086,1.56374608,210.23,210.21,7.42]
[1756941806282,1.56374608,210.23,210.2,7.42]
[1756941806479,1.56374608,210.24,210.2,7.42]
[1756941806682,1.56374608,210.24,210.19,30.82]
[1756941806881,1.56374608,210.24,210.2,7.42]
[1756941807280,1.56374608,210.24,210.19,30.82]
[1756941807582,1.56374608,210.24,210.2,7.42]
[1756941807881,1.56374608,210.26,210.2,7.42]
[1756941810889,9.28374608,210.22,210.19,38.24]
[1756941812285,9.28374608,210.22,210.19,30.82]
[1756941812487,1.56374608,210.2,210.19,30.82]
[1756941814195,1.56374608,210.2,210.19,38.24]
[1756941814590,1.56374608,210.22,210.19,30.82]
[1756941814790,1.56374608,210.22,210.2,7.42]
[1756941816091,1.56374608,210.24,210.19,30.82]
[1756941816290,1.56374608,210.24,210.2,7.42]
[1756941816696,1.56374608,210.24,210.19,30.82]
[1756941816994,1.56374608,210.24,210.2,7.42]
[1756941817294,1.56374608,210.24,210.19,12.49]
[1756941817795,1.56374608,210.24,210.2,7.42]
[1756941817991,1.56374608,210.24,210.19,12.49]
[1756941818187,1.56374608,210.24,210.21,7.42]
[1756941818388,1.56374608,210.24,210.19,12.49]
[1756941818594,1.56374608,210.24,210.21,7.42]
[1756941818795,1.56374608,210.24,210.2,7.42]
[1756941818995,1.56374608,210.24,210.19,12.49]
[1756941819197,1.56374608,210.24,210.2,7.42]
[1756941819493,1.56374608,210.24,210.19,12.49]
[1756941819694,1.56374608,210.24,210.2,7.42]
[1756941819894,1.56374608,210.24,210.21,7.42]
[1756941820094,1.56374608,210.24,210.2,7.42]
[1756941820295,1.56374608,210.24,210.23,7.42]
[1756941821996,1.56374608,210.26,210.22,11.15]
[1756941823201,1.56374608,210.28,210.22,11.15]
[1756941824099,1.56374608,210.31,210.23,7.41]
[1756941827004,7.62,210.26,210.23,7.41]
[1756941827606,7.62,210.26,210.24,7.41]
[1756941828305,7.62,210.26,210.22,18.56]
[1756941828706,1.56374608,210.23,210.22,11.15]
[1756941828907,9.18374608,210.23,210.22,11.15]
[1756941829808,9.18374608,210.23,210.22,26.29]
[1756941832513,1.56374608,210.23,210.22,33.7]
[1756941833614,2.44415291,210.25,210.22,26.29]
[1756941833914,7.62,210.24,210.22,26.29]
[1756941834812,2.44415291,210.25,210.22,33.7]
[1756941835110,10.06415291,210.25,210.22,33.7]
[1756941839010,2.44415291,210.25,210.22,26.29]
[1756941839215,2.44415291,210.25,210.23,7.41]
[1756941840113,2.44415291,210.25,210.22,26.29]
[1756941840315,2.44415291,210.25,210.23,7.41]
[1756941840516,2.44415291,210.25,210.22,26.29]
[1756941840820,2.44415291,210.25,210.23,7.41]
[1756941841819,2.44415291,210.25,210.22,26.29]
[1756941842011,2.44415291,210.28,210.23,7.41]
[1756941844821,2.44415291,210.28,210.22,26.29]
[1756941845424,2.44415291,210.28,210.23,7.41]
[1756941845723,2.44415291,210.28,210.22,26.29]
[1756941845724,10.06415291,210.28,210.22,33.7]
[1756941846326,10.06415291,210.25,210.22,33.7]
[1756941846527,10.06415291,210.25,210.22,26.29]
[1756941846528,7.62,210.24,210.22,26.29]
[1756941848622,2.44415291,210.25,210.22,26.29]
[1756941849626,7.62,210.24,210.22,26.29]
[1756941851626,2.44415291,210.25,210.22,33.7]
[1756941852728,2.44415291,210.25,210.22,26.29]
[1756941852928,2.44415291,210.25,210.23,7.34]
[1756941853131,2.44415291,210.25,210.24,7.34]
[1756941854229,2.44415291,210.25,210.22,18.49]
[1756941854523,2.44415291,210.25,210.23,7.34]
[1756941856025,2.44415291,210.25,210.24,24.95]
[1756941856231,2.44415291,210.27,210.25,7.34]
[1756941856432,2.44415291,210.27,210.24,17.61]
[1756941856626,2.44415291,210.27,210.25,7.34]
[1756941857829,2.44415291,210.27,210.26,7.34]
[1756941858831,2.44415291,210.27,210.24,17.61]
[1756941859032,2.44415291,210.27,210.25,7.34]
[1756941862236,10.42415291,210.27,210.25,7.34]
[1756941862424,10.42415291,210.27,210.24,17.61]
[1756941862629,2.44415291,210.27,210.24,17.61]
[1756941863136,7.98,210.26,210.24,17.61]
[1756941863532,2.44415291,210.27,210.24,17.61]
[1756941863733,7.98,210.28,210.25,7.34]
[1756941863931,2.44415291,210.26,210.25,7.34]
[1756941864134,2.44415291,210.26,210.24,17.61]
[1756941864337,10.42415291,210.26,210.24,17.61]
[1756941865238,7.98,210.26,210.24,17.61]
[1756941865438,2.44415291,210.25,210.24,24.95]
[1756941865941,2.44415291,210.25,210.24,17.61]
[1756941868342,10.42415291,210.25,210.24,17.61]
[1756941869449,2.44415291,210.25,210.22,11.15]
[1756941869637,7.98,210.24,210.21,7.34]
[1756941869841,2.44415291,210.22,210.13,7.34]
[1756941872548,2.44415291,210.22,210.14,0.58]
[1756941872743,2.44415291,210.19,210.15,7.34]
[1756941873044,10.42415291,210.19,210.15,7.34]
[1756941873447,10.42415291,210.19,210.15,12.56]
[1756941873647,10.42415291,210.19,210.16,7.34]
[1756941874036,2.44415291,210.19,210.16,7.34]
[1756941874947,2.44415291,210.19,210.15,12.56]
[1756941875345,2.44415291,210.19,210.16,7.34]
[1756941875549,2.44415291,210.19,210.15,12.56]
[1756941875550,2.44415291,210.19,210.17,7.34]
[1756941876149,7.98,210.18,210.15,19.9]
[1756941876853,7.98,210.15,210.14,0.58]
[1756941883551,2.44415291,210.13,210.09,7.92]
[1756941883749,7.38,210.12,210.09,7.92]
[1756941885353,2.44415291,210.13,210.09,7.92]
[1756941885552,7.38,210.12,210.09,7.92]
[1756941885752,9.82415291,210.13,210.03,7.92]
[1756941892575,7.38,210.2,210.05,7.92]
[1756941892873,126.00415291,210.2,210.05,7.92]
[1756941893470,1.56532086,210.16,210.08,1.56532086]
[1756941893670,1.56532086,210.16,210.09,7.92]
[1756941903383,319.82,210.21,210.1,1.56532086]
[1756941903585,1.56532086,210.19,210.11,7.92]
[1756941904977,1.56532086,210.15,210.11,7.92]
[1756941905290,8.94532086,210.15,210.11,7.92]
[1756941905488,1.56532086,210.13,210.07,7.92]
[1756941905787,1.56532086,210.11,210.04,1.56532086]
[1756941905979,1.56532086,210.11,210.05,7.92]
[1756941908888,30.32,210.14,210.05,7.92]
[1756941909084,1.56532086,210.14,210.07,7.92]
[1756941910087,1.56532086,210.18,210.11,7.92]
[1756941916797,7.38,210.2,210.11,7.92]
[1756941917098,1.56532086,210.18,210.11,7.92]
[1756941918795,8.94532086,210.2,210.12,1.56532086]
[1756941918999,8.94532086,210.2,210.13,7.24]
[1756941923904,7.57,210.17,210.1,1.56532086]
[1756941924098,7.57,210.17,210.11,7.24]
[1756941924295,1.56532086,210.18,210.11,7.24]
[1756941930607,1.56532086,210.2,210.11,7.24]
[1756941931114,9.13532086,210.2,210.11,7.24]
[1756941934112,9.13532086,210.2,210.13,7.24]
[1756941940214,5.3297525,210.24,210.13,7.24]
[1756941940411,7.57,210.25,210.17,1.56532086]
[1756941940612,1.56532086,210.28,210.2,7.24]
[1756941941919,1.56532086,210.26,210.2,7.24]
[1756941945315,7.88,210.31,210.21,1.56532086]
[1756941945515,9.44532086,210.31,210.24,7.36]
[1756941948222,9.44532086,210.31,210.24,8.92532086]
[1756941951023,1.56532086,210.31,210.24,8.92532086]
[1756941955624,7.88,210.32,210.24,7.36]
[1756941956419,7.88,210.28,210.17,7.36]
[1756941961621,2.44202259,210.32,210.19,2.44202259]
[1756941961823,10.32202259,210.32,210.15,3.94367202]
[1756941962028,2.44202259,210.31,210.18,7.36]
[1756941962629,7.88,210.3,210.18,7.36]
[1756941966528,7.88,210.27,210.18,7.36]
[1756941967529,7.88,210.24,210.11,35.00739461]
[1756941967832,7.88,210.24,210.12,7.36]
[1756941970136,7.88,210.24,210.15,7.36]
[1756941979739,7.62,210.29,210.18,7.32]
[1756941981342,7.62,210.26,210.18,7.32]
[1756942007463,7.91,210.29,210.19,7.23]
[1756942008559,10.35202259,210.29,210.19,7.23]
[1756942013655,2.44202259,210.26,210.19,7.23]
[1756942013964,7.91,210.25,210.19,7.23]
[1756942016759,7.91,210.25,210.15,3.94367202]
[1756942016965,7.91,210.25,210.16,7.23]
[1756942017465,1.56428649,210.23,210.16,7.23]
[1756942017665,9.47428649,210.23,210.16,7.23]
[1756942020060,9.47428649,210.23,210.16,8.79428649]
[1756942021161,7.91,210.2,210.16,7.23]
[1756942021363,1.56428649,210.21,210.16,7.23]
[1756942022157,1.56428649,210.21,210.14,3.96269478]
[1756942022362,1.56428649,210.21,210.15,7.23]
[1756942023466,7.91,210.22,210.15,8.79428649]
[1756942026674,7.91,210.27,210.2,7.23]
[1756942028868,7.91,210.25,210.18,1.56428649]
[1756942029274,7.91,210.23,210.17,7.23]
[1756942030175,9.47428649,210.26,210.19,7.23]
[1756942042983,1.56428649,210.26,210.19,7.23]
[1756942043482,1.56428649,210.26,210.2,1.56428649]
[1756942043882,1.56428649,210.26,210.21,7.61]
[1756942044182,1.56428649,210.26,210.18,7.61]
[1756942044381,1.56428649,210.26,210.21,7.61]
[1756942044777,1.56428649,210.26,210.2,1.56428649]
[1756942045581,1.56428649,210.26,210.2,9.17428649]
[1756942054897,7.49,210.27,210.2,9.17428649]
[1756942055092,9.05428649,210.27,210.2,9.17428649]
[1756942057295,1.56428649,210.29,210.22,1.56428649]
[1756942057604,9.05428649,210.3,210.23,7.61]
[1756942060600,1.56428649,210.32,210.23,7.61]
[1756942060800,1.56428649,210.32,210.25,7.61]
[1756942063794,7.49,210.33,210.26,1.56428649]
[1756942063995,7.49,210.33,210.28,1.56428649]
[1756942064196,7.49,210.33,210.29,7.35]
[1756942064404,7.49,210.33,210.28,1.56428649]
[1756942064806,7.49,210.33,210.29,7.35]
[1756942065009,7.49,210.33,210.28,1.56428649]
[1756942065202,7.49,210.33,210.29,7.35]
[1756942065706,7.49,210.33,210.28,1.56428649]
[1756942066701,7.49,210.33,210.29,7.35]
[1756942067205,7.49,210.33,210.28,1.56428649]
[1756942067405,7.49,210.33,210.29,7.35]
[1756942067597,7.49,210.33,210.28,1.56428649]
[1756942068401,7.49,210.33,210.29,7.35]
[1756942069109,7.87,210.34,210.28,7.35]
[1756942071109,7.87,210.3,210.24,7.35]
[1756942075313,1.56428649,210.36,210.28,7.35]
[1756942075508,1.56428649,210.34,210.28,7.35]
[1756942079516,7.87,210.35,210.28,7.35]
[1756942084920,2.44139788,210.37,210.28,7.35]
[1756942085618,7.87,210.36,210.28,7.35]
[1756942089019,7.87,210.36,210.23,3.96269478]
[1756942089224,7.87,210.36,210.24,7.35]
[1756942090524,7.87,210.36,210.26,7.35]
[1756942093719,10.31139788,210.36,210.26,7.35]
[1756942106427,2.44139788,210.33,210.26,7.35]
[1756942106628,7.53,210.32,210.26,7.35]
[1756942111039,7.53,210.32,210.23,11.21269478]
[1756942111230,118.52139788,210.33,210.23,11.21269478]
[1756942112441,7.53,210.32,210.23,11.21269478]
[1756942112637,118.52139788,210.33,210.23,11.21269478]
[1756942113341,7.53,210.32,210.23,11.21269478]
[1756942113539,118.52139788,210.33,210.23,11.21269478]
[1756942114039,7.53,210.32,210.23,11.21269478]
[1756942114241,7.53,210.31,210.23,3.96269478]
[1756942114536,118.52139788,210.33,210.24,11.21269478]
[1756942114737,2.44139788,210.33,210.25,7.25]
[1756942116744,7.53,210.32,210.25,7.25]
[1756942135355,2.44139788,210.3,210.23,3.96269478]
[1756942135554,7.3,210.29,210.22,11.71269478]
[1756942138450,7.3,210.29,210.22,3.96269478]
[1756942138657,7.3,210.29,210.23,7.75]
[1756942141453,1.56365101,210.26,210.23,7.75]
[1756942141657,8.86365101,210.26,210.23,7.75]
[1756942141958,1.56365101,210.26,210.22,7.75]
[1756942142954,1.56365101,210.26,210.21,3.96269478]
[1756942143360,7.3,210.25,210.22,7.75]
[1756942144755,7.3,210.25,210.18,1.56365101]
[1756942144961,7.3,210.25,210.2,3.97323182]
[1756942145357,7.3,210.25,210.19,3.97323182]
[1756942145554,7.3,210.25,210.2,7.75]
[1756942145961,7.3,210.25,210.19,3.97323182]
[1756942146561,7.3,210.25,210.2,7.75]
[1756942146962,7.3,210.25,210.19,3.97323182]
[1756942148159,7.3,210.25,210.2,7.75]
[1756942148865,7.3,210.23,210.2,7.75]
[1756942149066,1.56365101,210.24,210.2,7.75]
[1756942149365,8.86365101,210.22,210.18,7.75]
[1756942149758,1.56365101,210.22,210.18,7.75]
[1756942149954,7.3,210.21,210.18,7.75]
[1756942150663,7.3,210.21,210.16,3.97323182]
[1756942151064,1.56365101,210.22,210.17,7.75]
[1756942151468,1.56365101,210.22,210.16,3.97323182]
[1756942151763,1.56365101,210.22,210.17,7.4]
[1756942151969,1.56365101,210.22,210.16,3.97323182]
[1756942152466,1.56365101,210.22,210.17,7.4]
[1756942152667,9.07365101,210.2,210.17,7.4]
[1756942153066,9.07365101,210.2,210.14,3.97323182]
[1756942153268,1.56365101,210.22,210.15,7.4]
[1756942155665,1.56365101,210.26,210.15,7.4]
[1756942155859,1.56365101,210.26,210.18,1.56365101]
[1756942156058,1.56365101,210.26,210.19,7.4]
[1756942157264,9.07365101,210.26,210.19,7.4]
[1756942159370,3.65621801,210.25,210.19,7.4]
[1756942159574,3.65621801,210.24,210.19,7.4]
[1756942159762,9.07365101,210.26,210.19,7.4]
[1756942159964,3.65621801,210.25,210.19,7.4]
[1756942160164,3.65621801,210.24,210.18,1.56365101]
[1756942160364,9.07365101,210.26,210.19,7.4]
[1756942160564,3.65627583,210.25,210.19,7.4]
[1756942160761,3.65627583,210.24,210.18,1.56365101]
[1756942161065,9.07365101,210.26,210.19,7.4]
[1756942161265,3.65625938,210.25,210.19,7.4]
[1756942161464,3.65625938,210.24,210.19,7.4]
[1756942161668,9.07365101,210.26,210.19,7.4]
[1756942161960,3.65637574,210.25,210.19,7.4]
[1756942162173,3.65637574,210.24,210.19,7.4]
[1756942162372,1.56365101,210.26,210.19,7.4]
[1756942162575,3.65629021,210.25,210.19,7.4]
[1756942162765,1.56365101,210.26,210.19,7.4]
[1756942163062,3.65629021,210.25,210.19,7.4]
[1756942163266,1.56365101,210.26,210.19,7.4]
[1756942163465,3.65630334,210.25,210.19,7.4]
[1756942163668,3.65630334,210.24,210.18,1.56365101]
[1756942163960,7.51,210.25,210.19,7.4]
[1756942164164,3.65633328,210.24,210.19,7.4]
[1756942164371,7.51,210.25,210.19,7.4]
[1756942164673,1.56365101,210.26,210.19,7.4]
[1756942164871,3.65629565,210.25,210.19,7.4]
[1756942165071,1.56365101,210.26,210.19,7.4]
[1756942165268,3.65637258,210.25,210.19,7.4]
[1756942165572,7.51,210.28,210.21,7.4]
[1756942165869,3.65617204,210.27,210.21,7.4]
[1756942166071,3.65617204,210.26,210.21,7.4]
[1756942166374,7.51,210.28,210.21,7.4]
[1756942166564,3.65631959,210.27,210.21,7.4]
[1756942166769,3.65631959,210.26,210.21,7.4]
[1756942166969,9.07365101,210.28,210.21,7.4]
[1756942167168,3.6561988,210.27,210.21,7.4]